bitfinex/quotes_SOLUSD_20241028
["timestamp","ask_amount","ask_price","bid_price","bid_amount"]
[1730158802709,0.6098132,178.66,178.63,16.95514641]
[1730158803515,0.6098132,178.66,178.64,16.95514641]
[1730158803687,0.6098132,178.66,178.65,23.776884]
[1730158804910,0.6098132,178.66,178.65,40.73203041]
[1730158806195,0.6098132,178.66,178.65,60.73203041]
[1730158806594,23.16225961,178.66,178.58,23.24208014]
[1730158806803,16.95514641,178.64,178.58,16.95514641]
[1730158808011,6.2071132,178.66,178.52,15.9646]
[1730158808207,16.95514641,178.58,178.53,16.95514641]
[1730158808405,16.95514641,178.61,178.52,19.0820066]
[1730158808609,16.95514641,178.61,178.56,16.95514641]
[1730158808908,16.95514641,178.63,178.58,16.95514641]
[1730158809296,16.95514641,178.63,178.59,23.776884]
[1730158811018,16.95514641,178.63,178.61,23.776884]
[1730158811390,16.95514641,178.63,178.58,23.776884]
[1730158813217,0.6098132,178.66,178.6,23.776884]
[1730158813423,16.95514641,178.64,178.6,23.776884]
[1730158813601,16.95514641,178.63,178.6,23.776884]
[1730158813798,16.95514641,178.61,178.6,23.776884]
[1730158816320,16.95514641,178.58,178.53,16.95514641]
[1730158816697,16.95514641,178.58,178.54,23.776884]
[1730158817428,16.95514641,178.57,178.54,23.776884]
[1730158817599,16.95514641,178.57,178.53,23.776884]
[1730158817922,16.95514641,178.6,178.55,23.776884]
[1730158818100,16.95514641,178.57,178.55,23.776884]
[1730158820301,11.7607,178.6,178.55,23.776884]
[1730158820302,16.95514641,178.56,178.55,23.776884]
[1730158820820,6.1616,178.6,178.55,23.776884]
[1730158821018,16.95514641,178.57,178.55,23.776884]
[1730158822011,16.95514641,178.58,178.54,23.776884]
[1730158823208,16.95514641,178.59,178.54,23.776884]
[1730158824510,16.95514641,178.57,178.54,23.776884]
[1730158824712,16.95514641,178.56,178.52,23.776884]
[1730158824910,16.95514641,178.57,178.52,40.73203041]
[1730158825110,16.95514641,178.59,178.55,23.776884]
[1730158825604,16.95514641,178.62,178.56,16.95514641]
[1730158825809,16.95514641,178.62,178.57,23.776884]
[1730158827021,32.80904641,178.63,178.57,40.73203041]
[1730158827222,6.2942,178.65,178.57,40.73203041]
[1730158827223,16.95514641,178.64,178.59,16.95514641]
[1730158827412,23.24934641,178.65,178.6,23.776884]
[1730158827605,16.95514641,178.64,178.6,23.776884]
[1730158827826,16.95514641,178.63,178.59,23.776884]
[1730158828413,23.24934641,178.65,178.59,40.73203041]
[1730158828915,6.2942,178.65,178.62,23.776884]
[1730158830226,23.24934641,178.65,178.6,23.776884]
[1730158830825,23.24934641,178.65,178.6,40.73203041]
[1730158831003,6.2942,178.65,178.6,40.73203041]
[1730158831407,6.2942,178.65,178.61,16.95514641]
[1730158831826,6.2942,178.65,178.62,23.776884]
[1730158833909,0.6098132,178.66,178.64,16.95514641]
[1730158834215,0.6098132,178.66,178.65,40.73203041]
[1730158836911,0.6098132,178.66,178.6,0.1]
[1730158836912,17.56495961,178.66,178.57,20.0]
[1730158837115,17.56495961,178.66,178.6,16.95514641]
[1730158838212,17.56495961,178.66,178.61,40.73203041]
[1730158838410,0.6098132,178.66,178.61,40.73203041]
[1730158839831,0.6098132,178.66,178.61,40.73203041]
[1730158841218,17.56495961,178.66,178.61,40.73203041]
[1730158842237,16.95514641,178.64,178.59,16.95514641]
[1730158842439,16.95514641,178.64,178.6,23.776884]
[1730158843212,16.95514641,178.63,178.59,23.776884]
[1730158843416,0.6098132,178.66,178.56,16.95514641]
[1730158843417,16.95514641,178.61,178.56,16.95514641]
[1730158843631,16.95514641,178.61,178.51,15.567]
[1730158843632,16.95514641,178.59,178.54,16.95514641]
[1730158844819,16.95514641,178.59,178.55,23.776884]
[1730158845347,16.95514641,178.59,178.53,16.95514641]
[1730158845638,16.95514641,178.58,178.52,20.13033306]
[1730158845842,16.95514641,178.58,178.52,16.95514641]
[1730158846233,16.95514641,178.57,178.52,16.95514641]
[1730158846529,16.95514641,178.58,178.52,16.95514641]
[1730158846843,16.95514641,178.58,178.53,23.776884]
[1730158847547,16.95514641,178.58,178.53,40.73203041]
[1730158849539,16.95514641,178.58,178.52,40.73203041]
[1730158852134,16.95514641,178.58,178.53,16.95514641]
[1730158852321,16.95514641,178.58,178.54,23.776884]
[1730158852922,16.95514641,178.6,178.55,16.95514641]
[1730158853143,16.95514641,178.61,178.57,23.776884]
[1730158857119,6.3864,178.63,178.59,23.776884]
[1730158857528,23.34154641,178.63,178.59,23.776884]
[1730158858154,6.3864,178.63,178.59,23.776884]
[1730158858321,23.34154641,178.63,178.59,23.776884]
[1730158858639,17.23183722,178.63,178.58,23.776884]
[1730158858946,10.84543722,178.59,178.48,20.1]
[1730158859129,10.84543722,178.58,178.54,23.776884]
[1730158859522,10.84543722,178.59,178.54,34.62232122]
[1730158862837,10.84543722,178.6,178.54,34.62232122]
[1730158865340,10.84543722,178.55,178.48,3.25283211]
[1730158865650,10.84543722,178.55,178.5,10.84543722]
[1730158866149,10.84543722,178.52,178.46,10.84543722]
[1730158866959,10.84543722,178.51,178.46,10.84543722]
[1730158867142,10.84543722,178.5,178.42,16.2908]
[1730158867343,49.64624888,178.56,178.39,6.1661]
[1730158867344,10.84543722,178.48,178.39,6.1661]
[1730158867540,10.84543722,178.47,178.42,10.84543722]
[1730158867954,10.84543722,178.48,178.42,10.84543722]
[1730158868566,16.97463569,178.48,178.43,23.776884]
[1730158868978,16.97463569,178.5,178.45,23.776884]
[1730158869263,16.97463569,178.52,178.47,16.97463569]
[1730158869561,16.97463569,178.52,178.47,23.776884]
[1730158869760,16.97463569,178.51,178.47,23.776884]
[1730158871558,16.97463569,178.51,178.46,23.776884]
[1730158871866,16.97463569,178.5,178.45,23.776884]
[1730158872058,16.97463569,178.48,178.42,16.97463569]
[1730158873351,16.97463569,178.48,178.43,23.776884]
[1730158873763,16.97463569,178.46,178.4,16.97463569]
[1730158873959,16.97463569,178.46,178.41,16.97463569]
[1730158874172,16.97463569,178.47,178.41,16.97463569]
[1730158874872,6.505,178.49,178.45,16.97463569]
[1730158875048,15.119,178.5,178.47,16.97463569]
[1730158875249,16.97463569,178.52,178.47,16.97463569]
[1730158875450,16.97463569,178.52,178.47,23.776884]
[1730158875753,16.97463569,178.51,178.47,23.776884]
[1730158875953,16.97463569,178.51,178.46,23.776884]
[1730158876356,16.97463569,178.48,178.43,16.97463569]
[1730158876573,16.97463569,178.48,178.44,23.776884]
[1730158876757,16.97463569,178.49,178.44,40.75151969]
[1730158877449,16.97463569,178.5,178.45,16.97463569]
[1730158877653,16.97463569,178.53,178.47,40.75151969]
[1730158878250,21.624,178.54,178.49,16.97463569]
[1730158878251,38.59863569,178.54,178.49,16.97463569]
[1730158878758,16.97463569,178.53,178.48,16.97463569]
[1730158879168,38.59863569,178.54,178.48,16.97463569]
[1730158880563,16.97463569,178.51,178.47,23.776884]
[1730158881252,16.97463569,178.52,178.47,40.75151969]
[1730158881454,16.97463569,178.53,178.47,40.75151969]
[1730158881653,16.97463569,178.53,178.48,16.97463569]
[1730158882161,16.97463569,178.53,178.47,40.75151969]
[1730158883471,16.97463569,178.52,178.47,40.75151969]
[1730158884752,16.97463569,178.51,178.47,23.776884]
[1730158885474,21.624,178.54,178.47,23.776884]
[1730158885475,16.97463569,178.52,178.47,23.776884]
[1730158885681,16.97463569,178.52,178.47,40.75151969]
[1730158886173,16.97463569,178.53,178.48,16.97463569]
[1730158887088,21.624,178.54,178.5,16.97463569]
[1730158887372,23.45243569,178.58,178.53,16.97463569]
[1730158888673,16.97463569,178.57,178.52,16.97463569]
[1730158891957,6.4778,178.58,178.52,16.97463569]
[1730158891958,23.45243569,178.58,178.52,16.97463569]
[1730158892369,16.97463569,178.55,178.52,23.776884]
[1730158892558,6.4778,178.58,178.52,23.776884]
[1730158892559,16.97463569,178.56,178.52,23.776884]
[1730158892980,16.97463569,178.56,178.51,23.776884]
[1730158893359,16.97463569,178.55,178.45,18.27136729]
[1730158893554,16.97463569,178.5,178.45,16.97463569]
[1730158893987,16.97463569,178.51,178.46,16.97463569]
[1730158894281,16.97463569,178.52,178.47,16.97463569]
[1730158894665,16.97463569,178.53,178.48,16.97463569]
[1730158896480,16.97463569,178.52,178.47,16.97463569]
[1730158897281,16.97463569,178.53,178.48,40.75151969]
[1730158898483,10.85655917,178.53,178.48,34.63344317]
[1730158899056,10.85655917,178.55,178.5,10.85655917]
[1730158899884,6.4778,178.58,178.53,10.85655917]
[1730158900184,6.4778,178.58,178.54,10.85655917]
[1730158900561,6.4778,178.58,178.53,16.95273881]
[1730158901671,6.4778,178.58,178.54,16.95273881]
[1730158902473,6.4778,178.58,178.53,16.95273881]
[1730158903463,6.4778,178.58,178.54,16.95273881]
[1730158904193,23.43053881,178.58,178.53,16.95273881]
[1730158904593,16.95273881,178.56,178.53,23.776884]
[1730158904878,16.95273881,178.56,178.52,23.776884]
[1730158905082,16.95273881,178.54,178.5,23.776884]
[1730158905481,12.0776,178.58,178.49,23.776884]
[1730158905482,16.95273881,178.53,178.49,23.776884]
[1730158905676,16.95273881,178.54,178.49,40.72962281]
[1730158906683,16.95273881,178.55,178.5,16.95273881]
[1730158906988,16.95273881,178.55,178.51,23.776884]
[1730158907894,16.95273881,178.55,178.5,23.776884]
[1730158909373,16.95273881,178.55,178.5,40.72962281]
[1730158909588,16.0077,178.59,178.54,16.95273881]
[1730158909888,16.0077,178.59,178.55,16.95273881]
[1730158910490,32.96043881,178.59,178.54,16.95273881]
[1730158911490,16.0077,178.59,178.55,16.95273881]
[1730158911881,32.96043881,178.59,178.5,23.776884]
[1730158912122,32.96043881,178.59,178.54,16.95273881]
[1730158914598,23.07943881,178.62,178.57,16.95273881]
[1730158917409,16.95273881,178.61,178.56,16.95273881]
[1730158918482,23.07943881,178.62,178.57,16.95273881]
[1730158919301,23.07943881,178.62,178.56,16.95273881]
[1730158919808,23.07943881,178.62,178.57,16.95273881]
[1730158919985,23.07943881,178.62,178.5,26.95186676]
[1730158919986,6.1267,178.62,178.58,16.95273881]
[1730158920686,15.4999,178.64,178.59,10.84547111]
[1730158921004,0.6098132,178.66,178.63,10.84547111]
[1730158921584,0.6098132,178.66,178.62,10.84547111]
[1730158922498,0.6098132,178.66,178.63,10.84547111]
[1730158923101,0.6098132,178.66,178.64,10.84547111]
[1730158923285,0.6098132,178.66,178.65,10.84547111]
[1730158923484,0.6098132,178.66,178.65,78.00423955]
[1730158923681,0.6098132,178.66,178.65,23.776884]
[1730158923908,0.6098132,178.66,178.63,10.84547111]
[1730158924506,0.6098132,178.66,178.62,16.9355992]
[1730158924690,0.6098132,178.66,178.63,23.776884]
[1730158925108,0.6098132,178.66,178.63,40.7124832]
[1730158926401,16.9355992,178.64,178.56,3.18864611]
[1730158926609,16.9355992,178.61,178.56,16.9355992]
[1730158928108,16.9355992,178.6,178.54,16.9355992]
[1730158928289,16.9355992,178.59,178.51,16.5015]
[1730158928627,16.9355992,178.57,178.52,16.9355992]
[1730158928787,16.9355992,178.58,178.52,16.9355992]
[1730158929510,16.9355992,178.56,178.5,16.9355992]
[1730158929804,16.9355992,178.57,178.52,16.9355992]
[1730158930012,16.9355992,178.58,178.52,16.9355992]
[1730158930995,16.9355992,178.58,178.53,16.9355992]
[1730158931198,16.9355992,178.59,178.54,16.9355992]
[1730158931511,16.9355992,178.58,178.53,16.9355992]
[1730158932009,16.0882,178.6,178.45,0.9736297]
[1730158932010,15.7754,178.52,178.45,0.9736297]
[1730158932190,16.9355992,178.46,178.34,15.8367]
[1730158932525,16.9355992,178.46,178.4,16.9355992]
[1730158933016,16.9355992,178.46,178.41,16.9355992]
[1730158933311,16.9355992,178.45,178.39,16.9355992]
[1730158933507,16.9355992,178.45,178.4,16.9355992]
[1730158933714,16.9355992,178.45,178.39,16.9355992]
[1730158933912,16.9355992,178.46,178.4,16.9355992]
[1730158935094,16.9355992,178.49,178.44,16.9355992]
[1730158935488,16.9355992,178.49,178.43,16.9355992]
[1730158936129,16.9355992,178.48,178.43,16.9355992]
[1730158936296,16.9355992,178.49,178.43,16.9355992]
[1730158936623,16.9355992,178.51,178.46,16.9355992]
[1730158936909,32.7109992,178.52,178.46,16.9355992]
[1730158938397,16.9355992,178.5,178.45,16.9355992]
[1730158939496,16.9355992,178.47,178.42,16.9355992]
[1730158939922,16.9355992,178.46,178.4,16.9355992]
[1730158940217,16.9355992,178.46,178.41,16.9355992]
[1730158941024,16.9355992,178.47,178.41,16.9355992]
[1730158943901,16.9355992,178.46,178.41,16.9355992]
[1730158944113,16.9355992,178.45,178.41,16.9355992]
[1730158944417,16.9355992,178.46,178.41,16.9355992]
[1730158948015,16.9355992,178.46,178.34,19.97793649]
[1730158948226,16.9355992,178.45,178.4,16.9355992]
[1730158949296,5.6029,178.48,178.34,19.97793649]
[1730158949297,16.9355992,178.44,178.39,16.9355992]
[1730158949694,16.9355992,178.42,178.34,0.97253547]
[1730158949896,16.5417,178.45,178.4,16.9355992]
[1730158950117,16.5417,178.45,178.41,16.9355992]
[1730158950328,16.5417,178.45,178.42,16.9355992]
[1730158951202,16.5417,178.45,178.41,16.9355992]
[1730158951808,15.0018,178.49,178.44,16.9355992]
[1730158952002,31.9373992,178.49,178.44,16.9355992]
[1730158952511,31.9373992,178.49,178.43,16.9355992]
[1730158953827,16.9355992,178.48,178.43,16.9355992]
[1730158956930,31.9373992,178.49,178.43,16.9355992]
[1730158958609,25.86505338,178.49,178.43,10.86325338]
[1730158959704,15.0018,178.49,178.44,10.86325338]
[1730158959904,10.86325338,178.48,178.43,10.86325338]
[1730158960123,10.86325338,178.46,178.4,10.86325338]
[1730158960504,10.86325338,178.46,178.41,10.86325338]
[1730158960917,10.86325338,178.45,178.34,19.22291408]
[1730158961105,10.86325338,178.43,178.38,10.86325338]
[1730158961721,10.86325338,178.42,178.37,10.86325338]
[1730158962318,43.45301352,178.47,178.31,0.97309804]
[1730158962319,10.86325338,178.41,178.31,0.97309804]
[1730158962515,10.86325338,178.4,178.34,10.86325338]
[1730158963009,10.86325338,178.42,178.36,10.86325338]
[1730158964242,6.1183,178.44,178.41,10.86325338]
[1730158964436,6.1183,178.44,178.41,16.97889584]
[1730158965045,6.1183,178.44,178.4,16.97889584]
[1730158966219,16.97889584,178.47,178.41,16.97889584]
[1730158966543,16.97889584,178.46,178.41,16.97889584]
[1730158966836,16.97889584,178.46,178.4,16.97889584]
[1730158968234,16.97889584,178.45,178.4,16.97889584]
[1730158969116,16.97889584,178.46,178.41,16.97889584]
[1730158972022,16.97889584,178.47,178.42,16.97889584]
[1730158972238,6.1098,178.48,178.44,16.97889584]
[1730158972417,15.0018,178.49,178.45,16.97889584]
[1730158974631,23.24659584,178.52,178.47,16.97889584]
[1730158974941,16.97889584,178.51,178.46,16.97889584]
[1730158975730,16.97889584,178.48,178.43,16.97889584]
[1730158975929,16.97889584,178.49,178.43,16.97889584]
[1730158976434,16.97889584,178.48,178.43,16.97889584]
[1730158977637,16.97889584,178.5,178.44,16.97889584]
[1730158978036,16.97889584,178.49,178.44,16.97889584]
[1730158978926,16.97889584,178.5,178.45,16.97889584]
[1730158980023,16.97889584,178.5,178.44,16.97889584]
[1730158980222,16.97889584,178.49,178.44,16.97889584]
[1730158980723,16.97889584,178.48,178.43,16.97889584]
[1730158982232,16.97889584,178.49,178.44,16.97889584]
[1730158982824,16.97889584,178.5,178.45,16.97889584]
[1730158983026,16.97889584,178.5,178.44,16.97889584]
[1730158983929,16.97889584,178.47,178.39,23.776884]
[1730158984247,16.97889584,178.47,178.42,16.97889584]
[1730158984451,16.97889584,178.47,178.39,23.776884]
[1730158984630,16.97889584,178.46,178.41,16.97889584]
[1730158987959,16.97889584,178.49,178.44,16.97889584]
[1730158988348,16.97889584,178.48,178.43,16.97889584]
[1730158988552,10.86373216,178.48,178.43,10.86373216]
[1730158989752,11.8693,178.52,178.4,23.776884]
[1730158989939,10.86373216,178.49,178.44,10.86373216]
[1730158990453,16.97226433,178.5,178.44,16.97226433]
[1730158991034,6.2677,178.52,178.47,16.97226433]
[1730158991239,6.2677,178.52,178.48,16.97226433]
[1730158991453,6.2677,178.52,178.47,16.97226433]
[1730158991752,23.23996433,178.52,178.47,16.97226433]
[1730158992355,16.97226433,178.51,178.46,16.97226433]
[1730158994239,16.97226433,178.48,178.43,16.97226433]
[1730158994460,28.84156433,178.52,178.46,16.97226433]
[1730158995858,16.97226433,178.5,178.45,16.97226433]
[1730158997147,16.97226433,178.49,178.44,16.97226433]
[1730158998149,16.97226433,178.49,178.43,16.97226433]
[1730158998569,6.2677,178.52,178.42,16.97226433]
[1730158998570,16.97226433,178.47,178.42,16.97226433]
[1730158998746,16.97226433,178.48,178.43,16.97226433]
[1730159000161,16.97226433,178.48,178.42,16.97226433]
[1730159000373,16.97226433,178.47,178.42,16.97226433]
[1730159000744,16.97226433,178.48,178.43,16.97226433]
[1730159000949,16.97226433,178.51,178.46,16.97226433]
[1730159001167,6.2677,178.52,178.48,16.97226433]
[1730159003359,6.2677,178.52,178.47,16.97226433]
[1730159006752,15.896,178.54,178.49,16.97226433]
[1730159007057,6.5257,178.57,178.52,16.97226433]
[1730159007373,23.49796433,178.57,178.52,16.97226433]
[1730159007950,29.09796433,178.57,178.52,16.97226433]
[1730159009963,16.97226433,178.6,178.55,16.97226433]
[1730159010584,10.84949261,178.6,178.55,10.84949261]
[1730159011472,10.84949261,178.59,178.54,10.84949261]
[1730159016280,10.84949261,178.59,178.53,10.84949261]
[1730159017477,10.84949261,178.55,178.43,60.178484]
[1730159017652,10.84949261,178.55,178.5,10.84949261]
[1730159018165,10.84949261,178.56,178.5,10.84949261]
[1730159018473,10.84949261,178.55,178.43,63.39867359]
[1730159018781,10.84949261,178.55,178.5,10.84949261]
[1730159020078,10.84949261,178.56,178.5,10.84949261]
[1730159020466,10.84949261,178.56,178.51,10.84949261]
[1730159020882,10.84949261,178.59,178.54,10.84949261]
[1730159021185,22.8229,178.61,178.54,10.84949261]
[1730159021386,10.84949261,178.59,178.54,10.84949261]
[1730159025476,10.84949261,178.58,178.53,10.84949261]
[1730159027783,10.84949261,178.56,178.51,10.84949261]
[1730159030082,10.84949261,178.57,178.52,10.84949261]
[1730159030580,10.84949261,178.58,178.53,10.84949261]
[1730159030777,5.5993,178.6,178.53,10.84949261]
[1730159030778,10.84949261,178.59,178.53,10.84949261]
[1730159034983,17.08289261,178.61,178.56,10.84949261]
[1730159035657,10.84949261,178.62,178.57,10.84949261]
[1730159035856,10.84949261,178.62,178.56,10.84949261]
[1730159036480,10.84949261,178.61,178.56,10.84949261]
[1730159036876,10.84949261,178.6,178.55,10.84949261]
[1730159040183,10.84949261,178.61,178.55,10.84949261]
[1730159040968,10.84949261,178.6,178.55,10.84949261]
[1730159044592,10.84949261,178.61,178.56,10.84949261]
[1730159044789,10.84949261,178.6,178.51,43.776884]
[1730159045081,6.5232,178.58,178.45,27.40470497]
[1730159045291,10.84949261,178.52,178.47,10.84949261]
[1730159045993,10.84949261,178.52,178.46,10.84949261]
[1730159046363,10.84949261,178.52,178.47,23.776884]
[1730159046595,5.6001,178.57,178.47,10.84949261]
[1730159046770,10.84949261,178.53,178.48,34.62637661]
[1730159047087,10.84949261,178.54,178.49,10.84949261]
[1730159048563,10.84949261,178.53,178.48,23.776884]
[1730159048982,5.6001,178.57,178.48,23.776884]
[1730159049174,10.84949261,178.53,178.48,23.776884]
[1730159050083,6.5232,178.58,178.51,10.84949261]
[1730159050284,10.84949261,178.56,178.51,10.84949261]
[1730159051885,10.84949261,178.55,178.5,10.84949261]
[1730159052468,10.84949261,178.55,178.49,10.84949261]
[1730159053008,10.84949261,178.55,178.5,23.776884]
[1730159053791,10.84949261,178.55,178.5,34.62637661]
[1730159054291,10.84949261,178.55,178.45,15.2019]
[1730159054292,10.84949261,178.51,178.46,10.84949261]
[1730159055269,10.84949261,178.51,178.45,15.2019]
[1730159055475,10.84949261,178.51,178.46,23.776884]
[1730159055867,48.99837044,178.56,178.46,34.62637661]
[1730159056070,10.84949261,178.51,178.46,34.62637661]
[1730159056689,10.84949261,178.52,178.47,10.84949261]
[1730159058067,10.84949261,178.51,178.46,34.62637661]
[1730159059972,10.84949261,178.47,178.41,0.97359518]
[1730159060193,10.84949261,178.44,178.39,10.84949261]
[1730159060374,10.84949261,178.45,178.39,10.84949261]
[1730159061394,10.84949261,178.45,178.4,23.776884]
[1730159061701,10.84949261,178.44,178.4,23.776884]
[1730159062496,10.84949261,178.46,178.4,34.62637661]
[1730159063276,10.84949261,178.46,178.41,10.84949261]
[1730159063493,10.84949261,178.48,178.42,10.84949261]
[1730159064403,6.3363,178.5,178.45,10.84949261]
[1730159064579,21.3837,178.54,178.46,10.84949261]
[1730159064979,10.84949261,178.51,178.46,10.84949261]
[1730159065511,10.84949261,178.51,178.45,10.84949261]
[1730159067204,10.84949261,178.52,178.46,10.84949261]
[1730159069117,21.3837,178.54,178.49,10.84949261]
[1730159069291,6.3363,178.54,178.5,10.84949261]
[1730159070408,6.3363,178.54,178.49,10.84949261]
[1730159071304,6.3363,178.54,178.43,43.776884]
[1730159071305,10.84949261,178.53,178.48,10.84949261]
[1730159073410,6.3363,178.54,178.49,10.84949261]
[1730159073590,17.18579261,178.54,178.48,10.84949261]
[1730159073783,17.18579261,178.54,178.49,10.84949261]
[1730159074103,10.84949261,178.52,178.46,10.84949261]
[1730159074903,10.84949261,178.51,178.42,23.776884]
[1730159075204,10.84949261,178.51,178.46,10.84949261]
[1730159075710,10.84949261,178.52,178.46,10.84949261]
[1730159078698,6.3363,178.54,178.49,10.84949261]
[1730159078699,17.18579261,178.54,178.49,10.84949261]
[1730159079211,17.18579261,178.54,178.43,20.0]
[1730159079212,10.84949261,178.53,178.48,10.84949261]
[1730159080285,6.3363,178.54,178.48,10.84949261]
[1730159080508,17.18579261,178.54,178.48,10.84949261]
[1730159080885,17.18579261,178.54,178.49,10.84949261]
[1730159081091,6.3363,178.54,178.49,10.84949261]
[1730159081612,17.18579261,178.54,178.49,10.84949261]
[1730159084599,17.18579261,178.54,178.48,10.84949261]
[1730159085515,10.84949261,178.53,178.48,10.84949261]
[1730159086109,10.84949261,178.53,178.47,10.84949261]
[1730159087502,17.18579261,178.54,178.48,10.84949261]
[1730159087699,10.84949261,178.53,178.47,10.84949261]
[1730159090119,17.18579261,178.54,178.48,10.84949261]
[1730159090888,6.3363,178.54,178.48,10.84949261]
[1730159091087,17.18579261,178.54,178.48,10.84949261]
[1730159092012,10.84949261,178.53,178.48,10.84949261]
[1730159092919,17.18579261,178.54,178.48,10.84949261]
[1730159095407,10.84949261,178.53,178.48,10.84949261]
[1730159095609,10.84949261,178.53,178.47,10.84949261]
[1730159097224,6.3363,178.54,178.48,10.84949261]
[1730159097517,6.3363,178.54,178.49,10.84949261]
[1730159098829,10.84949261,178.56,178.5,10.84949261]
[1730159098998,10.84949261,178.54,178.48,10.84949261]
[1730159099198,10.84949261,178.52,178.46,23.776884]
[1730159099431,10.84949261,178.52,178.46,34.62637661]
[1730159099726,10.84949261,178.51,178.46,34.62637661]
[1730159099933,10.84949261,178.49,178.41,15.1913]
[1730159100529,6.2808,178.52,178.44,10.84949261]
[1730159100530,10.84949261,178.5,178.44,10.84949261]
[1730159101325,10.84949261,178.45,178.37,6.80899273]
[1730159101530,10.84949261,178.44,178.38,10.84949261]
[1730159101831,10.84949261,178.41,178.37,0.97354193]
[1730159102036,10.84949261,178.41,178.35,10.84949261]
[1730159102527,10.84949261,178.39,178.32,18.91066384]
[1730159102734,10.84949261,178.39,178.33,10.84949261]
[1730159102902,10.84949261,178.39,178.34,10.84949261]
[1730159103106,10.84949261,178.4,178.35,10.84949261]
[1730159103300,21.4406,178.45,178.32,18.91066384]
[1730159103507,10.84949261,178.41,178.32,18.91066384]
[1730159103722,21.4406,178.45,178.37,10.84949261]
[1730159103922,10.84949261,178.43,178.37,10.84949261]
[1730159104126,10.84949261,178.4,178.33,43.776884]
[1730159104309,10.84949261,178.42,178.37,10.84949261]
[1730159104833,21.4406,178.45,178.4,10.84949261]
[1730159105001,6.2808,178.45,178.41,10.84949261]
[1730159105323,10.84949261,178.46,178.41,10.84949261]
[1730159106121,10.84949261,178.45,178.39,10.84949261]
[1730159106428,10.84949261,178.44,178.4,23.776884]
[1730159108934,10.84949261,178.45,178.4,23.776884]
[1730159109519,22.0641,178.49,178.41,10.84949261]
[1730159109729,10.84949261,178.48,178.43,10.84949261]
[1730159109943,10.84949261,178.46,178.41,10.84949261]
[1730159110242,10.84949261,178.45,178.41,23.776884]
[1730159111038,10.84949261,178.46,178.41,23.776884]
[1730159112240,10.84949261,178.46,178.4,10.84949261]
[1730159112535,10.84949261,178.43,178.39,23.776884]
[1730159113135,10.84949261,178.44,178.39,34.62637661]
[1730159113742,10.84949261,178.44,178.39,10.84949261]
[1730159114544,5.603,178.48,178.35,20.0]
[1730159114545,10.84949261,178.43,178.35,20.0]
[1730159114830,10.84949261,178.43,178.34,23.776884]
[1730159114831,10.84949261,178.41,178.36,10.84949261]
[1730159115417,10.84949261,178.41,178.33,23.776884]
[1730159115619,5.6028,178.48,178.39,10.84949261]
[1730159115819,10.84949261,178.44,178.39,10.84949261]
[1730159116026,10.84949261,178.44,178.38,10.84949261]
[1730159116810,10.84949261,178.46,178.41,10.84949261]
[1730159117014,22.0641,178.49,178.43,10.84949261]
[1730159117237,10.84949261,178.48,178.39,43.776884]
[1730159117436,10.84949261,178.48,178.42,10.84949261]
[1730159117626,10.84949261,178.47,178.42,10.84949261]
[1730159118229,10.84949261,178.45,178.39,34.62637661]
[1730159118432,10.84949261,178.46,178.4,10.84949261]
[1730159119643,10.84949261,178.44,178.39,34.62637661]
[1730159120018,10.84949261,178.43,178.32,15.6545]
[1730159120221,10.84949261,178.41,178.36,10.84949261]
[1730159120840,5.6036,178.46,178.39,10.84949261]
[1730159121032,10.84949261,178.46,178.4,10.84949261]
[1730159121234,10.84949261,178.43,178.38,10.84949261]
[1730159121435,10.84949261,178.44,178.39,10.84949261]
[1730159122053,27.6666,178.49,178.4,10.84949261]
[1730159122226,22.0641,178.49,178.44,10.84949261]
[1730159122426,22.0641,178.49,178.46,10.84949261]
[1730159122755,6.5784,178.53,178.48,10.84949261]
[1730159122925,6.5784,178.53,178.49,10.84949261]
[1730159124036,6.5784,178.53,178.48,10.84949261]
[1730159124241,6.5784,178.53,178.49,10.84949261]
[1730159124544,6.5784,178.53,178.49,16.96334754]
[1730159126447,15.0855,178.54,178.51,16.96334754]
[1730159126652,32.04884754,178.54,178.48,16.96334754]
[1730159127446,32.04884754,178.54,178.49,16.96334754]
[1730159127650,15.0855,178.54,178.5,16.96334754]
[1730159127845,27.7156,178.58,178.51,16.96334754]
[1730159128077,16.96334754,178.56,178.51,16.96334754]
[1730159128953,22.1159,178.58,178.53,16.96334754]
[1730159129130,16.96334754,178.56,178.51,16.96334754]
[1730159129455,16.96334754,178.56,178.5,16.96334754]
[1730159130348,16.96334754,178.54,178.49,16.96334754]
[1730159130754,16.96334754,178.54,178.43,6.3271]
[1730159130755,16.96334754,178.53,178.47,16.96334754]
[1730159131060,16.96334754,178.53,178.48,16.96334754]
[1730159131353,16.96334754,178.53,178.47,16.96334754]
[1730159131555,16.96334754,178.53,178.43,23.776884]
[1730159131556,16.96334754,178.53,178.48,16.96334754]
[1730159133160,16.96334754,178.55,178.5,16.96334754]
[1730159133358,16.96334754,178.56,178.51,16.96334754]